bitfinex-derivatives/quotes_SOLF0:USTF0_20250319
["timestamp","ask_amount","ask_price","bid_price","bid_amount"]
[1742424439318,0.05593336,134.41,134.36,32.4879]
[1742424439718,7.4398,134.4,134.36,39.9294]
[1742424439919,20.92025547,134.4,134.36,32.4879]
[1742424440120,7.4408,134.38,134.36,32.4879]
[1742424440320,0.05593336,134.41,134.36,32.4879]
[1742424440720,7.49493336,134.41,134.38,7.4403]
[1742424440920,0.05593336,134.41,134.38,7.4403]
[1742424441116,0.05593336,134.41,134.36,32.4879]
[1742424441326,316.80141789,134.45,134.37,30.34]
[1742424441720,7.4373,134.44,134.4,7.439]
[1742424442426,0.05671245,134.43,134.41,7.495804]
[1742424442627,0.05671245,134.43,134.41,0.057004]
[1742424443023,7.49471245,134.43,134.41,0.057004]
[1742424444026,0.05671245,134.43,134.41,0.057004]
[1742424444528,0.05671245,134.43,134.42,7.4384]
[1742424445229,0.05671245,134.43,134.41,7.495704]
[1742424445430,0.05671245,134.43,134.41,0.057004]
[1742424445828,7.4384,134.42,134.41,0.057004]
[1742424446229,33.54072845,134.43,134.41,0.057004]
[1742424446430,0.05671245,134.43,134.41,0.057004]
[1742424447232,63.82072845,134.43,134.41,0.057004]
[1742424447431,7.4384,134.42,134.41,0.057004]
[1742424449434,7.44,134.42,134.34,9.4603]
[1742424449726,33.484016,134.4,134.34,30.22]
[1742424450030,63.704016,134.4,134.34,30.22]
[1742424450329,7.4405,134.39,134.31,3.992]
[1742424450530,0.05246059,134.38,134.31,3.992]
[1742424450736,0.05246059,134.38,134.34,30.2]
[1742424450933,0.05246059,134.38,134.35,7.4422]
[1742424451129,0.05246059,134.38,134.34,30.2]
[1742424451330,7.4418,134.36,134.34,30.16]
[1742424451632,0.05246059,134.38,134.33,32.1014]
[1742424452734,7.49316059,134.38,134.34,7.4426]
[1742424453134,0.05246059,134.38,134.33,32.1014]
[1742424453331,7.4415,134.37,134.33,39.5446]
[1742424453634,0.05246059,134.38,134.33,32.0614]
[1742424454137,7.4421,134.36,134.33,32.0614]
[1742424454831,0.05246059,134.38,134.33,30.12]
[1742424455235,0.05246059,134.38,134.31,3.992]
[1742424455439,7.4433,134.34,134.31,3.992]
[1742424455738,30.06,134.37,134.31,3.992]
[1742424455936,0.04940436,134.34,134.31,3.992]
[1742424456135,0.04940436,134.34,134.32,7.4437]
[1742424456337,0.04940436,134.34,134.31,3.992]
[1742424457342,0.04940436,134.34,134.33,7.4434]
[1742424458147,0.04940436,134.34,134.32,7.4439]
[1742424458649,7.49270436,134.34,134.31,3.992]
[1742424458846,0.04940436,134.34,134.31,2.0154]
[1742424459748,7.49270436,134.34,134.31,9.4597]
[1742424460047,0.04940436,134.34,134.31,2.0154]
[1742424460446,0.04940436,134.34,134.32,7.4437]
[1742424462049,0.04940436,134.34,134.33,7.4434]
[1742424462249,64.59080346,134.38,134.31,2.0154]
[1742424462449,64.59080346,134.38,134.32,1.9801]
[1742424462747,64.59080346,134.38,134.35,7.4421]
[1742424463448,64.64569111,134.38,134.36,29.82]
[1742424463951,64.64569111,134.38,134.37,7.4412]
[1742424465451,0.05488765,134.38,134.37,7.4412]
[1742424465851,0.05488765,134.38,134.37,37.1812]
[1742424468252,31.23036046,134.42,134.4,7.4391]
[1742424468450,10.28233715,134.42,134.4,7.4391]
[1742424468649,307.5694412,134.44,134.4,7.4391]
[1742424469049,7.4381,134.43,134.4,7.4391]
[1742424469450,7.49340716,134.43,134.4,7.49461718]
[1742424469949,0.05530716,134.43,134.4,0.05551718]
[1742424470156,0.05530716,134.43,134.4,29.63551718]
[1742424470752,41.02141789,134.44,134.4,57.63551718]
[1742424470956,146.52570854,134.46,134.43,20.94802331]
[1742424470957,113.64712297,134.46,134.43,20.94802331]
[1742424471157,113.64712297,134.46,134.44,30.22]
[1742424471459,113.64712297,134.46,134.45,7.4368]
[1742424471854,101.51092297,134.46,134.45,7.4368]
[1742424472052,25.55350495,134.46,134.45,7.4368]
[1742424473758,25.55350495,134.46,134.45,37.5768]
[1742424474754,0.05565802,134.47,134.46,7.4362]
[1742424476157,5.802e-05,134.47,134.46,7.4362]
[1742424476354,365.0,134.59,134.53,7.432]
[1742424476555,20.94802331,134.57,134.51,30.08]
[1742424476759,20.94802331,134.53,134.48,30.08]
[1742424476955,20.94802331,134.55,134.48,30.08]
[1742424477462,0.05527915,134.53,134.5,7.48231739]
[1742424477960,0.05527915,134.53,134.52,7.4329]
[1742424478161,0.05527915,134.53,134.51,30.1]
[1742424478763,0.05527915,134.53,134.52,7.4329]
[1742424478959,0.05527915,134.53,134.51,30.1]
[1742424479163,0.05527915,134.53,134.51,30.08]
[1742424480664,0.05527915,134.53,134.5,30.10861739]
[1742424482165,0.05527915,134.53,134.5,0.04861739]
[1742424482364,7.4334,134.51,134.5,0.04861739]
[1742424482864,7.435,134.49,134.46,30.0]
[1742424483261,6.0834,134.52,134.46,30.0]
[1742424483465,11.4066,134.52,134.48,7.4347]
[1742424483668,11.4066,134.52,134.46,30.0]
[1742424483862,3.9735,134.52,134.46,30.0]
[1742424484063,0.05694078,134.5,134.48,0.05533847]
[1742424484465,0.05694078,134.5,134.49,37.4145]
[1742424485166,1.29394486,134.62,134.56,7.4307]
[1742424485372,2.0338,134.61,134.55,30.2]
[1742424485767,7.429,134.59,134.55,30.2]
[1742424485968,2.0338,134.61,134.55,30.2]
[1742424486268,20.94802331,134.6,134.55,30.2]
[1742424486467,0.04997215,134.59,134.57,0.05516022]
[1742424486668,7.4296,134.58,134.57,0.05516022]
[1742424486868,0.04997215,134.59,134.57,0.05516022]
[1742424488570,7.47907215,134.59,134.57,0.05516022]
[1742424488869,0.04997215,134.59,134.57,0.05516022]
[1742424489273,7.4296,134.58,134.57,0.05516022]
[1742424490670,7.4296,134.58,134.49,20.94802331]
[1742424490671,20.94802331,134.58,134.49,20.94802331]
[1742424490877,20.94802331,134.56,134.5,30.08]
[1742424491071,20.94802331,134.54,134.47,30.1]
[1742424491272,20.94802331,134.52,134.47,30.1]
[1742424491670,7.48810853,134.51,134.48,0.05177962]
[1742424491866,0.05440853,134.51,134.48,0.05177962]
[1742424492070,0.05440853,134.51,134.49,7.4342]
[1742424493077,0.05440853,134.51,134.5,37.474]
[1742424493268,2.0206,134.57,134.5,30.04]
[1742424493474,2.0206,134.57,134.51,20.94802331]
[1742424494072,2.0407,134.6,134.53,20.94802331]
[1742424494276,0.05283379,134.58,134.55,21.00437482]
[1742424494479,0.05283379,134.58,134.57,20.94802331]
[1742424494674,9.4672,134.64,134.6,7.4285]
[1742424494873,2.0407,134.64,134.57,20.94802331]
[1742424495074,2.0407,134.64,134.56,30.1]
[1742424495273,7.4272,134.63,134.56,30.1]
[1742424495572,2.0407,134.64,134.56,30.1]
[1742424495975,0.05280702,134.61,134.6,7.4282]
[1742424498477,1.9653,134.68,134.65,7.4254]
[1742424498678,1.9653,134.68,134.63,30.04]
[1742424499081,9.3894,134.68,134.63,30.04]
[1742424499280,1.9653,134.68,134.63,30.04]
[1742424499681,0.05442143,134.67,134.65,7.4253]
[1742424500186,0.05442143,134.67,134.64,0.05157259]
[1742424501180,7.47932143,134.67,134.64,0.05157259]
[1742424502282,7.4253,134.66,134.64,0.05157259]
[1742424503581,7.4257,134.65,134.64,0.05157259]
[1742424503781,2.0319,134.65,134.6,29.92]
[1742424504179,31.9319,134.65,134.6,29.92]
[1742424504484,33.37654101,134.63,134.55,29.92]
[1742424504685,7.4269,134.63,134.59,7.4287]
[1742424504982,0.05455678,134.6,134.59,29.92]
[1742424505279,7.429,134.59,134.58,0.04853308]
[1742424505477,0.04982555,134.61,134.58,0.04853308]
[1742424505677,7.47802555,134.61,134.58,0.04853308]
[1742424505879,0.04982555,134.61,134.58,0.04853308]
[1742424506582,7.4285,134.6,134.58,0.04853308]
[1742424506782,0.04982555,134.61,134.58,0.04853308]
[1742424507183,7.429,134.59,134.58,0.04853308]
[1742424507383,0.04982555,134.61,134.58,0.04853308]
[1742424507881,7.4289,134.6,134.58,0.04853308]
[1742424508085,0.04982555,134.61,134.58,0.04853308]
[1742424508285,7.4288,134.6,134.58,0.04853308]
[1742424508486,0.04982555,134.61,134.58,0.04853308]
[1742424508878,7.429,134.59,134.58,0.04853308]
[1742424509989,0.04982555,134.61,134.55,29.84]
[1742424510180,33.8834,134.62,134.54,29.86]
[1742424510789,7.4289,134.6,134.54,37.2918]
[1742424510990,0.04701967,134.59,134.57,0.0483082]
[1742424511289,0.04701967,134.59,134.57,29.8883082]
[1742424512490,0.04701967,134.59,134.58,7.4296]
[1742424514395,252.5665,134.64,134.6,7.4281]
[1742424514587,3.9672,134.65,134.6,29.76]
[1742424514797,2.0632,134.7,134.61,33.37654101]
[1742424515186,2.0632,134.7,134.56,245.16]
[1742424515393,7.4254,134.66,134.62,7.4273]
[1742424515592,0.04857241,134.64,134.62,0.05344515]
[1742424516197,0.04857241,134.64,134.62,7.48074515]
[1742424516695,0.04857241,134.64,134.63,7.4268]
[1742424517293,0.04857241,134.64,134.62,0.05344515]
[1742424517699,0.04857241,134.64,134.62,29.83344515]
[1742424517900,0.04857241,134.64,134.63,7.4268]
[1742424518299,0.04857241,134.64,134.62,37.26074515]
[1742424518798,0.04857241,134.64,134.62,29.83344515]
[1742424519097,0.04857241,134.64,134.63,7.4268]
[1742424519295,2.0632,134.7,134.62,63.20998616]
[1742424519499,365.0,134.73,134.62,63.20998616]
[1742424519800,7.4221,134.72,134.62,63.15654101]
[1742424520001,277.0941,134.74,134.62,63.15654101]
[1742424520401,7.4233,134.7,134.66,7.4248]
[1742424520598,0.0562456,134.68,134.67,29.84]
[1742424521204,0.0562456,134.68,134.67,37.2646]
[1742424521499,7.4198,134.76,134.67,40.79654101]
[1742424521705,4.1013,134.77,134.68,30.08]
[1742424522205,4.1013,134.77,134.69,7.4235]
[1742424522598,0.04722182,134.74,134.72,0.0537935]
[1742424523898,7.46842182,134.74,134.72,0.0537935]
[1742424524403,7.4213,134.73,134.72,0.0537935]
[1742424524598,0.04722182,134.74,134.68,30.08]
[1742424525801,0.04722182,134.74,134.7,0.05076514]
[1742424526008,29.94,134.73,134.7,0.05076514]
[1742424526408,33.37654101,134.72,134.66,29.92]
[1742424526598,35.42194101,134.72,134.61,245.04]
[1742424526802,35.42194101,134.72,134.63,7.4265]
[1742424527002,33.37654101,134.69,134.62,29.92]
[1742424527202,63.29654101,134.69,134.62,29.92]
[1742424527403,7.4241,134.68,134.64,7.4259]
[1742424527602,0.04901083,134.67,134.64,7.47934199]
[1742424528312,7.47371083,134.67,134.64,0.05344199]
[1742424528505,0.04901083,134.67,134.64,0.05344199]
[1742424528914,7.4252,134.66,134.64,0.05344199]
[1742424529212,0.04901083,134.67,134.64,0.05344199]
[1742424529412,0.04901083,134.67,134.64,7.47974199]
[1742424530007,7.47371083,134.67,134.64,0.05344199]
[1742424530510,0.04901083,134.67,134.65,7.4257]
[1742424531414,0.04901083,134.67,134.64,7.47954199]
[1742424531710,7.47371083,134.67,134.64,0.05344199]
[1742424531906,0.04901083,134.67,134.64,0.05344199]
[1742424532515,7.4257,134.66,134.64,0.05344199]
[1742424532912,0.04901083,134.67,134.64,0.05344199]
[1742424533109,7.4257,134.65,134.64,0.05344199]
[1742424534618,0.04901083,134.67,134.64,0.05344199]
[1742424535317,7.47381083,134.67,134.64,0.05344199]
[1742424535619,0.04901083,134.67,134.64,0.05344199]
[1742424535819,7.47381083,134.67,134.64,0.05344199]
[1742424536420,0.04901083,134.67,134.64,0.05344199]
[1742424536821,0.04901083,134.67,134.65,7.4254]
[1742424538022,0.04901083,134.67,134.66,7.4252]
[1742424540321,0.04901083,134.67,134.65,7.4255]
[1742424541319,0.04901083,134.67,134.64,29.69344199]
[1742424541629,0.04901083,134.67,134.64,0.05344199]
[1742424542823,7.4257,134.65,134.64,0.05344199]
[1742424544823,7.4254,134.66,134.64,0.05344199]
[1742424545326,0.04901083,134.67,134.64,0.05344199]
[1742424546224,7.4255,134.66,134.64,0.05344199]
[1742424546429,0.04901083,134.67,134.64,0.05344199]
[1742424546931,7.4255,134.66,134.64,0.05344199]
[1742424547424,7.47381083,134.67,134.64,7.47964199]
[1742424547621,0.04901083,134.67,134.64,0.05344199]
[1742424548327,0.04901083,134.67,134.66,7.4252]
[1742424551626,1.083e-05,134.67,134.66,7.4252]
[1742424552225,2.0373,134.73,134.72,7.4219]
[1742424552422,2.0702,134.75,134.69,29.42]
[1742424552625,2.0702,134.75,134.7,29.42]
[1742424552929,9.4907,134.75,134.72,7.4215]
[1742424553125,2.0702,134.75,134.7,29.42]
[1742424553430,0.05153326,134.74,134.71,0.04748289]
[1742424553623,0.05153326,134.74,134.72,20.8455549]
[1742424553819,0.05153326,134.74,134.73,29.44]
[1742424554019,0.05153326,134.74,134.73,36.8613]
[1742424555520,0.05153326,134.74,134.73,29.44]
[1742424556028,0.05153326,134.74,134.71,29.42748289]
[1742424556629,0.05153326,134.74,134.71,36.84978289]
[1742424557626,0.05153326,134.74,134.71,29.42748289]
[1742424558033,0.05153326,134.74,134.71,36.84958289]
[1742424559135,0.05153326,134.74,134.71,29.42748289]
[1742424559331,0.05153326,134.74,134.71,0.04748289]
[1742424559935,20.89708816,134.74,134.71,0.04748289]
[1742424560236,7.4219,134.72,134.71,0.04748289]
[1742424560438,20.89708816,134.74,134.71,0.04748289]
[1742424560640,7.4217,134.73,134.71,0.04748289]
[1742424561241,0.05153326,134.74,134.71,0.04748289]
[1742424561843,0.05153326,134.74,134.71,7.46988289]
[1742424562441,0.05153326,134.74,134.71,0.04748289]
[1742424563137,7.47243326,134.74,134.71,0.04748289]
[1742424563333,0.05153326,134.74,134.71,0.04748289]
[1742424563533,22.82108816,134.74,134.71,0.04748289]
[1742424564548,30.24218816,134.74,134.71,0.04748289]
[1742424565251,22.82108816,134.74,134.71,0.04748289]
[1742424566145,1.97553326,134.74,134.71,7.46988289]
[1742424566649,1.97553326,134.74,134.71,0.04748289]
[1742424567053,1.97553326,134.74,134.71,29.12748289]
[1742424567552,1.97553326,134.74,134.73,7.4213]
[1742424567750,1.97553326,134.74,134.73,69.4213]
[1742424568448,0.05153326,134.74,134.73,69.4213]
[1742424570846,3.326e-05,134.74,134.73,69.4213]
[1742424571849,27.07655651,134.84,134.8,7.4172]
[1742424572050,27.07655651,134.84,134.79,29.0]
[1742424572255,7.4161,134.83,134.79,29.0]
[1742424572756,7.4163,134.83,134.79,29.0]
[1742424572957,20.89566486,134.82,134.8,0.04776323]
[1742424573359,7.4169,134.81,134.8,0.04776323]
[1742424573556,7.4169,134.81,134.79,29.0]
[1742424573756,7.4177,134.8,134.71,20.8455549]
[1742424573960,7.4177,134.8,134.72,29.06]
[1742424574149,7.4177,134.8,134.73,7.4213]
[1742424574354,7.4177,134.8,134.72,29.06]
[1742424574555,7.4177,134.8,134.73,7.4212]
[1742424574856,0.05644648,134.77,134.75,0.04936093]
[1742424575057,0.05644648,134.77,134.75,29.10936093]
[1742424577851,0.05644648,134.77,134.75,0.04936093]
[1742424578360,7.47554648,134.77,134.75,0.04936093]
[1742424578564,7.47554648,134.77,134.76,62.0]
[1742424578856,7.4197,134.76,134.75,0.04936093]
[1742424579358,7.47584648,134.77,134.75,0.04936093]
[1742424579859,7.421,134.74,134.7,273.88]
[1742424580865,49.8255549,134.76,134.7,244.96]
[1742424581059,0.05096603,134.73,134.71,0.05600265]
[1742424581460,7.4219,134.72,134.71,0.05600265]
[1742424582761,7.4219,134.72,134.71,62.05600265]
[1742424583160,7.4219,134.72,134.71,0.05600265]
[1742424583368,7.4235,134.69,134.68,28.92]
[1742424583567,28.9,134.73,134.66,28.9]
[1742424583767,7.4233,134.7,134.66,28.9]
[1742424584068,28.9,134.73,134.66,28.9]
[1742424584069,20.8455549,134.72,134.66,28.9]
[1742424584360,20.8455549,134.72,134.68,0.04801008]
[1742424584563,7.4772586,134.7,134.68,0.04801008]
[1742424585165,0.0538586,134.7,134.68,0.04801008]
[1742424586071,0.0538586,134.7,134.68,62.04801008]
[1742424587273,0.0538586,134.7,134.69,28.8]
[1742424587880,0.0538586,134.7,134.69,36.2235]
[1742424588378,14.20669705,134.79,134.69,57.0655549]
[1742424588572,30.72783508,134.8,134.75,20.8455549]
[1742424588874,30.72783508,134.8,134.78,7.4184]
[1742424589070,30.72783508,134.8,134.76,28.86]
[1742424589272,30.72783508,134.81,134.76,28.86]
[1742424589475,0.05384745,134.8,134.77,7.47268721]
[1742424589869,7.47164745,134.8,134.77,0.05388721]
[1742424590274,0.05384745,134.8,134.77,0.05388721]
[1742424591377,0.05384745,134.8,134.78,7.4183]
[1742424591577,0.05384745,134.8,134.78,62.0]
[1742424592873,7.47154745,134.8,134.77,0.05388721]
[1742424593072,0.05384745,134.8,134.77,0.05388721]
[1742424594878,7.47144745,134.8,134.77,0.05388721]
[1742424595680,7.4182,134.79,134.77,0.05388721]
[1742424595881,57.1237549,134.79,134.74,98.3406]
[1742424596081,2.1103,134.78,134.72,273.76]
[1742424596281,11.6344,134.78,134.73,7.421]
[1742424596581,20.8455549,134.77,134.73,7.421]
[1742424596877,20.8455549,134.77,134.74,7.4207]
[1742424597080,0.05219643,134.76,134.74,7.47785755]
[1742424597982,0.05219643,134.76,134.75,7.4202]
[1742424598182,0.05219643,134.76,134.74,0.05715755]
[1742424598685,0.05219643,134.76,134.75,7.4202]
[1742424599280,0.05219643,134.76,134.74,7.47775755]
[1742424599889,0.05219643,134.76,134.74,0.05715755]
[1742424600287,20.8455549,134.75,134.66,20.8455549]
[1742424600592,20.8455549,134.73,134.66,28.72]
[1742424600790,20.8455549,134.71,134.66,28.72]
[1742424600987,57.0083549,134.71,134.67,7.4244]
[1742424601187,49.5855549,134.71,134.65,28.74]
[1742424601388,0.0549506,134.69,134.67,7.48013907]
[1742424602191,0.0549506,134.69,134.68,7.4241]
[1742424603997,0.0549506,134.69,134.68,36.1041]
[1742424604195,5.06e-05,134.69,134.68,36.1041]
[1742424604493,22.8291549,134.76,134.68,49.5255549]
[1742424605087,7.4211,134.74,134.7,7.4225]
[1742424605294,22.8291549,134.76,134.68,49.5255549]
[1742424605498,0.05051635,134.73,134.71,7.47093074]
[1742424605696,0.05051635,134.73,134.71,0.04873074]
[1742424606898,0.05051635,134.73,134.71,7.47103074]
[1742424607299,0.05051635,134.73,134.71,28.68873074]
[1742424607899,0.05051635,134.73,134.71,36.11063074]
[1742424608294,0.05051635,134.73,134.71,0.04873074]
[1742424609103,0.05051635,134.73,134.72,7.4219]
[1742424611499,0.05051635,134.73,134.71,7.47103074]
[1742424612102,0.05051635,134.73,134.72,7.4219]
[1742424612302,0.05051635,134.73,134.71,0.04873074]
[1742424612705,7.47211635,134.73,134.71,0.04873074]
[1742424613107,0.05051635,134.73,134.71,0.04873074]
[1742424613804,0.05051635,134.73,134.71,7.47083074]
[1742424614506,7.47191635,134.73,134.71,0.04873074]
[1742424617613,7.4219,134.72,134.71,0.04873074]
[1742424618111,0.05051635,134.73,134.71,0.04873074]
[1742424618413,0.05051635,134.73,134.71,28.50873074]
[1742424618607,1.635e-05,134.73,134.72,7.4219]
[1742424618808,2.0266,134.79,134.71,56.77428564]
[1742424619009,2.0266,134.79,134.73,20.8455549]
[1742424619208,2.0266,134.79,134.75,7.4199]
[1742424619508,2.0266,134.79,134.74,28.48]
[1742424619713,7.4191,134.78,134.74,28.48]
[1742424619916,0.05286978,134.77,134.75,0.05457555]
[1742424621310,0.05286978,134.77,134.76,7.4197]
[1742424621807,0.05286978,134.77,134.75,0.05457555]
[1742424622813,0.05286978,134.77,134.75,7.47447555]
[1742424624203,0.05286978,134.77,134.75,0.05457555]
[1742424624603,7.4197,134.76,134.75,0.05457555]
[1742424624811,0.05286978,134.77,134.72,35.9217]
[1742424625012,20.8455549,134.76,134.69,62.0]
[1742424625317,25.0917549,134.76,134.7,28.5]
[1742424625520,20.8455549,134.74,134.68,35.9638]
[1742424625705,20.8455549,134.74,134.66,22.7775549]
[1742424625706,7.4232,134.7,134.66,1.932]
[1742424626019,0.05544911,134.69,134.67,28.61314905]
[1742424627114,0.05544911,134.69,134.67,0.05314905]
[1742424628616,7.47904911,134.69,134.67,0.05314905]
[1742424629015,0.05544911,134.69,134.6,31.02144794]
[1742424629219,20.8455549,134.68,134.61,28.56]
[1742424629420,24.9164549,134.7,134.62,20.8455549]
[1742424629611,32.3394549,134.7,134.62,20.8455549]
[1742424629918,24.9164549,134.7,134.62,20.8455549]
[1742424630112,0.0570412,134.67,134.65,7.4789279]
[1742424630316,0.0570412,134.67,134.65,0.0533279]
[1742424631216,0.0570412,134.67,134.66,7.4252]
[1742424631616,0.0570412,134.67,134.66,69.4252]
[1742424632521,0.0570412,134.67,134.65,7.4786279]
[1742424633015,0.0570412,134.67,134.66,7.4252]
[1742424634431,0.0570412,134.67,134.66,28.2707549]
[1742424635619,0.0570412,134.67,134.66,90.2707549]
[1742424636221,0.0570412,134.67,134.66,69.4252]
[1742424638824,0.0570412,134.67,134.66,7.4252]
[1742424640917,0.0570412,134.67,134.65,35.9588279]
[1742424641227,0.0570412,134.67,134.65,28.5333279]
[1742424641427,0.0570412,134.67,134.65,7.4788279]
[1742424641726,0.0570412,134.67,134.65,0.0533279]
[1742424642528,2.1247412,134.67,134.65,0.0533279]
[1742424643327,9.5494412,134.67,134.65,0.0533279]
[1742424645329,7.4252,134.66,134.65,0.0533279]
[1742424646729,7.4268,134.63,134.58,20.8455549]
[1742424646929,7.4268,134.63,134.58,49.2255549]
[1742424647326,7.4266,134.64,134.58,49.2255549]
[1742424647730,28.38,134.65,134.58,28.38]
[1742424647931,0.05187804,134.62,134.6,0.04727529]
[1742424648128,0.05187804,134.62,134.6,7.47547529]
[1742424648535,0.05187804,134.62,134.6,20.89283019]
[1742424648726,0.05187804,134.62,134.61,7.4279]
[1742424649032,6.0229,134.67,134.62,20.8455549]
[1742424650033,0.05402899,134.66,134.63,0.05370547]
[1742424650329,0.05402899,134.66,134.65,7.4257]
[1742424651834,4.0577,134.74,134.7,7.4228]
[1742424652030,6.0335,134.74,134.67,28.34]
[1742424652329,6.0335,134.74,134.72,7.4218]
[1742424652840,6.0335,134.74,134.71,7.4222]
[1742424653030,2.02731701,134.74,134.72,0.05183754]
[1742424653535,2.02731701,134.74,134.72,7.47333754]
[1742424653935,2.02731701,134.74,134.72,0.05183754]
[1742424654239,0.05151701,134.74,134.73,7.4213]
[1742424654534,0.05151701,134.74,134.73,35.7613]
[1742424655932,0.05151701,134.74,134.73,28.34]
[1742424657131,0.05151701,134.74,134.72,0.05183754]
[1742424657736,7.47261701,134.74,134.72,0.05183754]
[1742424657929,0.05151701,134.74,134.72,0.05183754]
[1742424658235,7.47231701,134.74,134.72,0.05183754]
[1742424659537,7.4213,134.73,134.72,0.05183754]
[1742424661238,0.05151701,134.74,134.72,0.05183754]
[1742424662241,0.05151701,134.74,134.73,7.4213]
[1742424662735,0.05151701,134.74,134.72,28.25183754]
[1742424663342,0.05151701,134.74,134.73,7.4213]
[1742424663537,0.05151701,134.74,134.72,28.25183754]
[1742424663940,0.05151701,134.74,134.72,35.67343754]
[1742424664644,0.05151701,134.74,134.73,7.4213]
[1742424665149,0.05151701,134.74,134.72,28.25183754]
[1742424665348,28.2,134.82,134.72,49.09739244]
[1742424665550,28.18,134.82,134.74,20.8455549]
[1742424665745,7.4173,134.81,134.75,28.18]
[1742424666452,7.4175,134.8,134.76,7.4194]
[1742424666651,0.05362514,134.79,134.77,0.05182296]
[1742424667252,0.05362514,134.79,134.78,7.4186]
[1742424667854,0.05362514,134.79,134.77,0.05182296]
[1742424669751,7.47172514,134.79,134.77,0.05182296]
[1742424670054,0.05362514,134.79,134.77,0.05182296]
[1742424671655,7.47192514,134.79,134.77,0.05182296]
[1742424672353,7.4186,134.78,134.77,0.05182296]
[1742424673158,0.05362514,134.79,134.77,0.05182296]
[1742424675358,7.47192514,134.79,134.77,0.05182296]
[1742424676553,0.05362514,134.79,134.77,0.05182296]
[1742424678360,7.4186,134.78,134.77,0.05182296]
[1742424678560,0.05362514,134.79,134.77,0.05182296]
[1742424678756,0.05362514,134.79,134.78,35.4386]
[1742424678961,28.02,134.87,134.78,48.8655549]
[1742424679363,35.4339,134.87,134.8,7.4171]
[1742424679565,35.4339,134.87,134.81,28.04]
[1742424679566,28.02,134.87,134.81,28.04]
[1742424679965,2.32562271,134.84,134.81,28.09166743]
[1742424681469,2.32562271,134.84,134.81,0.05166743]
[1742424681766,51.19117761,134.84,134.81,0.05166743]
[1742424682268,20.8455549,134.82,134.76,28.0]
[1742424682465,2.0151,134.81,134.76,28.0]
[1742424682668,30.0151,134.81,134.76,28.0]
[1742424683067,30.0151,134.81,134.72,21.2027549]
[1742424683368,0.05387825,134.78,134.75,0.05287857]
[1742424684468,7.47257825,134.78,134.75,0.05287857]
[1742424685470,0.05387825,134.78,134.75,0.05287857]
[1742424685870,7.47277825,134.78,134.75,0.05287857]
[1742424686365,0.05387825,134.78,134.75,0.05287857]
[1742424687467,48.79943315,134.78,134.75,0.05287857]
[1742424687668,7.4197,134.76,134.75,0.05287857]
[1742424688182,7.4243,134.68,134.62,88.83434435]
[1742424688468,48.7255549,134.71,134.62,102.25269925]
[1742424688663,27.88,134.7,134.62,102.25269925]
[1742424689067,20.8455549,134.69,134.62,81.40714435]
[1742424689471,7.48160316,134.67,134.65,0.04947352]
[1742424689676,0.05670316,134.67,134.65,0.04947352]
[1742424692768,28.15670316,134.67,134.65,0.04947352]
[1742424693170,49.00225806,134.67,134.58,265.6655549]
[1742424693367,2.1214,134.66,134.6,28.12]
[1742424693767,9.547,134.66,134.59,28.16]
[1742424694171,2.1214,134.66,134.59,28.16]
[1742424694372,0.05439776,134.64,134.61,0.05458852]
[1742424694676,28.21439776,134.64,134.61,0.05458852]
[1742424695376,0.05439776,134.64,134.61,0.05458852]
[1742424696169,7.48089776,134.64,134.61,0.05458852]
[1742424696575,0.05439776,134.64,134.61,0.05458852]
[1742424700273,0.05439776,134.64,134.61,28.23458852]
[1742424701075,0.05439776,134.64,134.62,7.4269]
[1742424701478,0.05439776,134.64,134.62,69.4269]
[1742424701678,0.05439776,134.64,134.63,7.4268]
[1742424702781,0.00121692,134.64,134.63,7.4268]
[1742424708376,245.02,134.8,134.63,7.42]
[1742424708578,2.0352,134.77,134.71,20.8455549]
[1742424708779,2.0352,134.77,134.76,7.4197]
[1742424708980,2.0352,134.77,134.72,28.12]
[1742424709477,0.05124885,134.76,134.73,0.0508789]
[1742424709875,0.05124885,134.76,134.75,7.4199]
[1742424710281,0.05124885,134.76,134.75,35.5199]
[1742424710882,0.05124885,134.76,134.73,28.1508789]
[1742424711578,0.05124885,134.76,134.75,7.4202]
[1742424718290,4.885e-05,134.76,134.75,7.4202]
[1742424719989,6.0898,134.83,134.81,7.4166]
[1742424720189,6.0898,134.83,134.79,28.0]